fUSD/lending_fUSD_20260128
["ID","MTS","AMOUNT","RATE_DAILY","PERIOD"]
[403893058,1769638248429,-150.0,0.00032872,30]
[403893059,1769638248438,-200.0,0.00032872,30]
[403893060,1769638248447,-500.0,0.00032872,30]
[403893061,1769638248456,-500.0,0.00032872,30]
[403893062,1769638248466,-200.0,0.00032872,30]
[403893063,1769638248475,-150.0,0.00032872,2]
[403893064,1769638248484,-183.1134535,0.00032878,2]
[403893065,1769638248493,-179.30657264,0.00032878,2]
[403893066,1769638248503,-296.0,0.00032883,2]
[403893067,1769638248512,-150.0,0.00032926,30]
[403893068,1769638248522,-500.0,0.00032926,30]
[403893069,1769638248531,-500.0,0.00032926,30]
[403893070,1769638248540,-296.0,0.00032936,2]
[403893071,1769638248549,-150.0,0.00032981,30]
[403893072,1769638248558,-177.0,0.00033,14]
[403893073,1769638248567,-296.0,0.00033011,2]
[403893074,1769638248577,-296.0,0.00033026,2]
[403893075,1769638248587,-250.0,0.00033036,30]
[403893076,1769638248596,-296.0,0.00033175,2]
[403893077,1769638248605,-407.59,0.000334,30]
[403893078,1769638248615,-296.0,0.00033509,2]
[403893079,1769638248624,-296.0,0.00033557,2]
[403893080,1769638248634,-150.00861738,0.0003367,50]
[403893081,1769638248643,-556.43261281,0.00033838,2]
[403893082,1769638248652,-296.0,0.00033855,2]
[403893083,1769638248661,-296.0,0.00033883,2]
[403893084,1769638248671,-669.22,0.00033918,2]
[403893085,1769638248680,-296.0,0.0003399,2]
[403893086,1769638248689,-296.0,0.00034047,2]
[403893087,1769638248699,-296.0,0.00034071,2]
[403893088,1769638248708,-296.0,0.00034223,7]
[403893089,1769638248717,-1733.4895823,0.00034313,5]
[403893090,1769638248726,-152.0,0.00034426,3]
[403893091,1769638248735,-1000.0,0.00034503,7]
[403893092,1769638248744,-178.0,0.00034521,30]
[403893093,1769638248753,-1500.0,0.00034708,120]
[403893094,1769638248762,-1500.0,0.00034708,120]
[403893095,1769638248771,-1500.0,0.00034708,120]
[403893096,1769638248780,-1500.0,0.00034708,120]
[403893097,1769638248789,-1500.0,0.00034708,120]
[403893098,1769638248798,-1500.0,0.00034708,120]
[403893099,1769638248807,-1500.0,0.00034708,120]
[403893100,1769638248816,-1500.0,0.00034708,120]
[403893101,1769638248825,-1500.0,0.00034708,120]
[403893102,1769638248835,-1500.0,0.00034708,120]
[403893103,1769638248844,-1500.0,0.00034708,120]
[403893104,1769638248853,-1500.0,0.00034708,120]
[403893105,1769638248863,-1000.0,0.00034777,7]
[403893106,1769638248873,-150.00861738,0.00034924,53]
[403893107,1769638248882,-2000.0,0.00034929,120]
[403893108,1769638248891,-2000.0,0.00034929,120]
[403893109,1769638248900,-2000.0,0.00034929,120]
[403893110,1769638248909,-2000.0,0.00034929,120]
[403893111,1769638248918,-2000.0,0.00034929,120]
[403893112,1769638248928,-2000.0,0.00034929,120]
[403893113,1769638248937,-717.245,0.00034929,120]
[403893114,1769638248946,-1000.0,0.00035051,7]
[403893115,1769638248955,-150.0,0.00035176,2]
[403893116,1769638248967,-150.0,0.00035176,2]
[403893117,1769638248976,-150.0,0.00035176,2]
[403893118,1769638248985,-1409.0,0.00035176,2]
[403893119,1769638248995,-3477.0,0.00035176,2]
[403893120,1769638249006,-1333.0,0.00035176,2]
[403893121,1769638249015,-184.0,0.00035176,2]
[403893122,1769638249024,-1270.0,0.00035176,2]
[403893123,1769638249035,-150.0,0.00035176,30]
[403893124,1769638249044,-187.8,0.00035288,2]
[403893125,1769638249053,-559.17,0.00035288,2]
[403893126,1769638249062,-180.06,0.00035288,2]
[403893127,1769638249071,-172.23,0.00035288,2]
[403893128,1769638249080,-231.58,0.00035288,2]
[403893129,1769638249090,-559.17,0.00035288,2]
[403893130,1769638249099,-559.17,0.00035288,2]
[403893131,1769638249108,-1231.6,0.00035288,2]
[403893132,1769638249117,-359.79,0.00035288,2]
[403893133,1769638249127,-559.17,0.00035288,2]
[403893134,1769638249136,-180.06,0.00035288,2]
[403893135,1769638249145,-191.77,0.00035288,2]
[403893136,1769638249154,-882.64,0.00035288,2]
[403893137,1769638249163,-1000.0,0.00035325,7]
[403893138,1769638249172,-4831.0,0.00035388,2]
[403893139,1769638249181,-2441.0,0.00035388,2]
[403893140,1769638249191,-567.0,0.00035388,2]
[403893141,1769638249200,-1000.0,0.00035469,90]
[403893142,1769638249209,-423.37965327,0.00035589,120]
[403893143,1769638249218,-997.0,0.00035616,120]
[403893144,1769638249227,-3012.0,0.00035616,120]
[403893145,1769638249236,-623.58267598,0.00035616,7]
[403893146,1769638249245,-424.39,0.00035616,30]
[403893147,1769638249255,-200.0,0.00035808,2]
[403893148,1769638249264,-505.14,0.00036,30]
[403893149,1769638249274,-557.421181,0.00036,26]
[403893150,1769638249283,-556.43261281,0.00036175,2]
[403893151,1769638249293,-150.00861738,0.00036179,57]
[403893152,1769638249302,-1000.0,0.00036395,14]
[403893153,1769638249311,-500.0,0.00036719,120]
[403893154,1769638249320,-505.14,0.0003672,30]
[403893155,1769638249329,-208.52,0.000368,2]
[403893156,1769638249338,-150.0,0.000368,15]
[403893157,1769638249348,-1000.0,0.00036869,83]
[403893158,1769638249357,-545.04649337,0.00036887,2]
[403893159,1769638249367,-103268.79199889,0.00036888,60]
[403893160,1769638249376,-1000.0,0.00037069,83]
[403893161,1769638249386,-1000.0,0.00037269,83]
[403893162,1769638249398,-262.5,0.00037313,30]
[403893163,1769638249408,-150.00861752,0.00037434,60]
[403893164,1769638249418,-1000.0,0.00037469,83]
[403893165,1769638249427,-1000.0,0.00037669,83]
[403893166,1769638249436,-190.6,0.000378,17]
[403893167,1769638249445,-208.55410935,0.00037819,120]
[403893168,1769638249454,-1361.5,0.00037843,30]
[403893169,1769638249463,-1000.0,0.00037869,83]
[403893170,1769638249472,-250.0,0.00038,45]
[403893171,1769638249482,-231.01617701,0.00038082,2]
[403893172,1769638249491,-150.0,0.00038176,2]
[403893173,1769638249500,-340.539,0.00038176,2]
[403893174,1769638249509,-3477.0,0.00038176,2]
[403893175,1769638249518,-184.0,0.00038176,2]
[403893176,1769638249527,-1270.0,0.00038176,2]
[403893177,1769638249536,-2472.07106167,0.00038234,2]
[403893178,1769638249545,-265.83,0.0003832,2]
[403893179,1769638249554,-300.0,0.00038356,120]
[403893180,1769638249562,-300.0,0.00038356,120]
[403893181,1769638249571,-300.0,0.00038356,120]
[403893182,1769638249581,-300.0,0.00038356,120]
[403893183,1769638249600,-300.0,0.00038356,120]
[403893184,1769638249619,-300.0,0.00038356,120]
[403893185,1769638249639,-300.0,0.00038356,120]
[403893186,1769638249659,-300.0,0.00038356,120]
[403893187,1769638249680,-300.0,0.00038356,120]
[403893188,1769638249695,-300.0,0.00038356,120]
[403893189,1769638249706,-300.0,0.00038356,120]
[403893190,1769638249724,-300.0,0.00038356,120]
[403893191,1769638249741,-300.0,0.00038356,120]
[403893192,1769638249753,-300.0,0.00038356,120]
[403893193,1769638249766,-300.0,0.00038356,120]
[403893194,1769638249777,-300.0,0.00038356,120]
[403893195,1769638249792,-300.0,0.00038356,120]
[403893196,1769638249804,-300.0,0.00038356,120]
[403893197,1769638249815,-300.0,0.00038356,120]
[403893198,1769638249825,-300.0,0.00038356,120]
[403893199,1769638249837,-300.0,0.00038356,120]
[403893200,1769638249846,-300.0,0.00038356,120]
[403893201,1769638249857,-300.0,0.00038356,120]
[403893202,1769638249866,-300.0,0.00038356,120]
[403893203,1769638249875,-300.0,0.00038356,120]
[403893204,1769638249884,-300.0,0.00038356,120]
[403893205,1769638249894,-300.0,0.00038356,120]
[403893206,1769638249903,-300.0,0.00038356,120]
[403893207,1769638249911,-300.0,0.00038356,120]
[403893208,1769638249921,-300.0,0.00038356,120]
[403893209,1769638249930,-300.0,0.00038356,120]
[403893210,1769638249940,-300.0,0.00038356,120]
[403893211,1769638249949,-300.0,0.00038356,120]
[403893212,1769638249960,-300.0,0.00038356,120]
[403893213,1769638249969,-300.0,0.00038356,120]
[403893214,1769638249979,-300.0,0.00038356,120]
[403893215,1769638249987,-300.0,0.00038356,120]
[403893216,1769638249996,-300.0,0.00038356,120]
[403893217,1769638250007,-300.0,0.00038356,120]
[403893218,1769638250016,-300.0,0.00038356,120]
[403893219,1769638250026,-300.0,0.00038356,120]
[403893220,1769638250037,-300.0,0.00038356,120]
[403893221,1769638250048,-300.0,0.00038356,120]
[403893222,1769638250057,-300.0,0.00038356,120]
[403893223,1769638250069,-300.0,0.00038356,120]
[403893224,1769638250080,-300.0,0.00038356,120]
[403893225,1769638250091,-300.0,0.00038356,120]
[403893226,1769638250101,-300.0,0.00038356,120]
[403893227,1769638250110,-300.0,0.00038356,120]
[403893228,1769638250122,-300.0,0.00038356,120]
[403893229,1769638250132,-300.0,0.00038356,120]
[403893230,1769638250143,-300.0,0.00038356,120]
[403893231,1769638250152,-300.0,0.00038356,120]
[403893232,1769638250162,-300.0,0.00038356,120]
[403893233,1769638250171,-300.0,0.00038356,120]
[403893234,1769638250181,-300.0,0.00038356,120]
[403893235,1769638250191,-300.0,0.00038356,120]
[403893236,1769638250203,-300.0,0.00038356,120]
[403893237,1769638250212,-300.0,0.00038356,120]
[403893238,1769638250221,-300.0,0.00038356,120]
[403893239,1769638250231,-300.0,0.00038356,120]
[403893240,1769638250239,-300.0,0.00038356,120]
[403893241,1769638250248,-300.0,0.00038356,120]
[403893242,1769638250258,-300.0,0.00038356,120]
[403893243,1769638250268,-300.0,0.00038356,120]
[403893244,1769638250277,-300.0,0.00038356,120]
[403893245,1769638250288,-300.0,0.00038356,120]
[403893246,1769638250297,-300.0,0.00038356,120]
[403893247,1769638250306,-300.0,0.00038356,120]
[403893248,1769638250315,-300.0,0.00038356,120]
[403893249,1769638250325,-300.0,0.00038356,120]
[403893250,1769638250334,-300.0,0.00038356,120]
[403893251,1769638250343,-300.0,0.00038356,120]
[403893252,1769638250352,-300.0,0.00038356,120]
[403893253,1769638250361,-300.0,0.00038356,120]
[403893254,1769638250370,-300.0,0.00038356,120]
[403893255,1769638250379,-300.0,0.00038356,120]
[403893256,1769638250388,-300.0,0.00038356,120]
[403893257,1769638250397,-300.0,0.00038356,120]
[403893258,1769638250406,-300.0,0.00038356,120]
[403893259,1769638250415,-300.0,0.00038356,120]
[403893260,1769638250424,-300.0,0.00038356,120]
[403893261,1769638250434,-300.0,0.00038356,120]
[403893262,1769638250443,-300.0,0.00038356,120]
[403893263,1769638250451,-300.0,0.00038356,120]
[403893264,1769638250460,-300.0,0.00038356,120]
[403893265,1769638250469,-300.0,0.00038356,120]
[403893266,1769638250479,-300.0,0.00038356,120]
[403893267,1769638250489,-300.0,0.00038356,120]
[403893268,1769638250498,-300.0,0.00038356,120]
[403893269,1769638250507,-300.0,0.00038356,120]
[403893270,1769638250516,-300.0,0.00038356,120]
[403893271,1769638250525,-300.0,0.00038356,120]
[403893272,1769638250535,-1361.5,0.00038374,30]
[403893273,1769638250545,-556.43261281,0.00038512,2]
[403893274,1769638250553,-6668.52,0.00038564,2]
[403893275,1769638250563,-217.47046445,0.00038689,64]
[403893276,1769638250571,-500.0,0.000387,120]
[403893277,1769638250580,-557.685715,0.000388,37]
[403893278,1769638250589,-152.0,0.00038878,4]
[403893279,1769638250598,-339.66,0.000389,30]
[403893280,1769638250607,-1361.5,0.00038905,30]
[403893281,1769638250616,-192.15591755,0.00039064,12]
[403893282,1769638250625,-1550.57850947,0.00039174,2]
[403893283,1769638250634,-1550.57850947,0.00039174,2]
[403893284,1769638250643,-880.0545839,0.00039174,2]
[403893285,1769638250652,-1550.57850947,0.00039174,2]
[403893286,1769638250661,-880.0545839,0.00039174,2]
[403893287,1769638250670,-1550.57850947,0.00039174,2]
[403893288,1769638250679,-1550.57850947,0.00039174,2]
[403893289,1769638250688,-1550.57850947,0.00039174,2]
[403893290,1769638250697,-1550.57850947,0.00039174,2]
[403893291,1769638250706,-1550.57850947,0.00039174,2]
[403893292,1769638250715,-1550.57850947,0.00039174,2]
[403893293,1769638250724,-1686.65192424,0.00039174,2]
[403893294,1769638250733,-200.0,0.00039311,2]
[403893295,1769638250742,-1361.5,0.00039436,120]
[403893296,1769638250755,-516.0,0.00039923,120]
[403893297,1769638250764,-217.47046445,0.00039943,67]
[403893298,1769638250773,-1361.5,0.00039967,120]
[403893299,1769638250782,-6784.00784414,0.0004,120]
[403893300,1769638250791,-863.77742898,0.0004,7]
[403893301,1769638250800,-5237.46535877,0.0004,120]
[403893302,1769638250810,-1353.05,0.000403,14]
[403893303,1769638250819,-424.39,0.00040451,30]
[403893304,1769638250828,-1361.5,0.00040497,120]
[403893305,1769638250838,-520.04,0.00040518,60]
[403893306,1769638250847,-2472.07106167,0.00040711,15]
[403893307,1769638250857,-152.48,0.00040775,120]
[403893308,1769638250866,-152.48,0.00040775,120]
[403893309,1769638250875,-152.47,0.00040775,120]
[403893310,1769638250885,-152.48,0.00040776,120]
[403893311,1769638250895,-152.47,0.00040776,120]
[403893312,1769638250904,-152.47,0.00040803,120]
[403893313,1769638250913,-556.43261281,0.0004085,15]
[403893314,1769638250922,-152.49,0.00040875,120]
[403893315,1769638250931,-152.47,0.00040876,120]
[403893316,1769638250940,-434.36904423,0.00040901,120]
[403893317,1769638250953,-152.47,0.00040903,120]
[403893318,1769638250968,-152.47,0.00040976,120]
[403893319,1769638250977,-1353.05,0.00041,14]
[403893320,1769638250985,-7003.0,0.00041,5]
[403893321,1769638250994,-152.5,0.00041003,120]
[403893322,1769638251005,-1361.5,0.00041028,120]
[403893323,1769638251014,-152.47,0.00041076,120]
[403893324,1769638251023,-798.0,0.00041096,120]
[403893325,1769638251034,-712.842,0.00041176,2]
[403893326,1769638251044,-152.52,0.00041176,120]
[403893327,1769638251053,-217.47046445,0.00041198,71]
[403893328,1769638251062,-1361.5,0.00041559,120]
[403893329,1769638251071,-173.92947726,0.00041636,4]
[403893330,1769638251080,-798.0,0.00041644,120]
[403893331,1769638251090,-367.37,0.000417,30]
[403893332,1769638251099,-408.21,0.000417,14]
[403893333,1769638251108,-11607.0,0.000417,117]
[403893334,1769638251117,-1353.05,0.000418,14]
[403893335,1769638251126,-159.71168434,0.000419,120]
[403893336,1769638251135,-500.0,0.00041905,60]
[403893337,1769638251144,-400.0,0.0004205,14]
[403893338,1769638251158,-220.76210575,0.000421,120]
[403893339,1769638251167,-408.21,0.000421,14]
[403893340,1769638251176,-152.48,0.00042105,120]
[403893341,1769638251185,-533.22,0.00042192,120]
[403893342,1769638251194,-500.0,0.000422,120]
[403893343,1769638251203,-152.48,0.00042205,120]
[403893344,1769638251212,-656.32175286,0.00042216,14]
[403893345,1769638251221,-1767.0,0.00042224,30]
[403893346,1769638251230,-1353.05,0.000423,14]
[403893347,1769638251240,-152.48,0.00042305,120]
[403893348,1769638251249,-1000.0,0.00042384,14]
[403893349,1769638251258,-152.48,0.00042405,120]
[403893350,1769638251267,-869.27,0.00042438,120]
[403893351,1769638251276,-500.0,0.00042438,120]
[403893352,1769638251286,-217.47046445,0.00042453,74]
[403893353,1769638251295,-408.21,0.000425,14]
[403893354,1769638251304,-152.48,0.00042505,120]
[403893355,1769638251313,-217.40193971,0.00042517,14]
[403893356,1769638251323,-500.0,0.0004254,60]
[403893357,1769638251332,-500.0,0.00042548,2]
[403893358,1769638251342,-869.27,0.00042575,120]
[403893359,1769638251355,-500.0,0.00042575,120]
[403893360,1769638251364,-152.48,0.00042605,120]
[403893361,1769638251373,-300.0,0.0004263,90]
[403893362,1769638251383,-300.0,0.0004263,90]
[403893363,1769638251392,-1767.0,0.00042659,30]
[403893364,1769638251401,-500.0,0.00042678,14]
[403893365,1769638251411,-500.0,0.00042678,14]
[403893366,1769638251419,-500.0,0.00042678,14]
[403893367,1769638251429,-500.0,0.00042678,14]
[403893368,1769638251439,-500.0,0.00042678,14]
[403893369,1769638251448,-500.0,0.00042678,14]
[403893370,1769638251457,-500.0,0.00042678,14]
[403893371,1769638251466,-296.86471563,0.00042678,14]
[403893372,1769638251475,-152.48,0.00042705,120]
[403893373,1769638251485,-869.27,0.00042712,120]
[403893374,1769638251494,-500.0,0.00042712,120]
[403893375,1769638251503,-798.0,0.0004274,120]
[403893376,1769638251512,-500.0,0.0004274,120]
[403893377,1769638251521,-500.0,0.0004274,120]
[403893378,1769638251530,-500.0,0.0004274,120]
[403893379,1769638251543,-500.0,0.0004274,120]
[403893380,1769638251553,-500.0,0.0004274,120]
[403893381,1769638251562,-500.0,0.0004274,120]
[403893382,1769638251571,-500.0,0.0004274,120]
[403893383,1769638251582,-500.0,0.0004274,120]
[403893384,1769638251591,-500.0,0.0004274,120]
[403893385,1769638251600,-500.0,0.0004274,120]
[403893386,1769638251609,-500.0,0.0004274,120]
[403893387,1769638251619,-500.0,0.0004274,120]
[403893388,1769638251628,-500.0,0.0004274,120]
[403893389,1769638251637,-500.0,0.0004274,120]
[403893390,1769638251646,-500.0,0.0004274,120]
[403893391,1769638251656,-500.0,0.0004274,120]
[403893392,1769638251665,-500.0,0.0004274,120]
[403893393,1769638251675,-500.0,0.0004274,120]
[403893394,1769638251684,-500.0,0.0004274,120]
[403893395,1769638251693,-500.0,0.0004274,120]
[403893396,1769638251703,-500.0,0.0004274,120]
[403893397,1769638251712,-500.0,0.0004274,120]
[403893398,1769638251721,-500.0,0.0004274,120]
[403893399,1769638251733,-500.0,0.0004274,120]
[403893400,1769638251742,-500.0,0.0004274,120]
[403893401,1769638251751,-500.0,0.0004274,120]
[403893402,1769638251761,-500.0,0.0004274,120]
[403893403,1769638251770,-500.0,0.0004274,120]
[403893404,1769638251779,-500.0,0.0004274,120]
[403893405,1769638251788,-500.0,0.0004274,120]
[403893406,1769638251798,-500.0,0.0004274,120]
[403893407,1769638251807,-500.0,0.0004274,120]
[403893408,1769638251817,-500.0,0.0004274,120]
[403893409,1769638251827,-500.0,0.0004274,120]
[403893410,1769638251837,-500.0,0.0004274,120]
[403893411,1769638251846,-500.0,0.0004274,120]
[403893412,1769638251857,-500.0,0.0004274,120]
[403893413,1769638251866,-500.0,0.0004274,120]
[403893414,1769638251876,-500.0,0.0004274,120]
[403893415,1769638251886,-500.0,0.0004274,120]
[403893416,1769638251896,-500.0,0.0004274,120]
[403893417,1769638251906,-500.0,0.0004274,120]
[403893418,1769638251916,-500.0,0.0004274,120]
[403893419,1769638251926,-500.0,0.0004274,120]
[403893420,1769638251935,-500.0,0.0004274,120]
[403893421,1769638251945,-500.0,0.0004274,120]
[403893422,1769638251955,-500.0,0.0004274,120]
[403893423,1769638251968,-500.0,0.0004274,120]
[403893424,1769638251978,-500.0,0.0004274,120]
[403893425,1769638251988,-500.0,0.0004274,120]
[403893426,1769638252181,-500.0,0.0004274,120]
[403893427,1769638252234,-500.0,0.0004274,120]
[403893428,1769638252244,-500.0,0.0004274,120]
[403893429,1769638252254,-500.0,0.0004274,120]
[403893430,1769638252264,-500.0,0.0004274,120]
[403893431,1769638252273,-500.0,0.0004274,120]
[403893432,1769638252283,-500.0,0.0004274,120]
[403893433,1769638252293,-500.0,0.0004274,120]
[403893434,1769638252302,-500.0,0.0004274,120]
[403893435,1769638252313,-500.0,0.0004274,120]
[403893436,1769638252323,-500.0,0.0004274,120]
[403893437,1769638252333,-500.0,0.0004274,120]
[403893438,1769638252343,-500.0,0.0004274,120]
[403893439,1769638252352,-500.0,0.0004274,120]
[403893440,1769638252362,-500.0,0.0004274,120]
[403893441,1769638252371,-500.0,0.0004274,120]
[403893442,1769638252382,-500.0,0.0004274,120]
[403893443,1769638252392,-500.0,0.0004274,120]
[403893444,1769638252402,-500.0,0.0004274,120]
[403893445,1769638252411,-500.0,0.0004274,120]
[403893446,1769638252420,-500.0,0.0004274,120]
[403893447,1769638252431,-500.0,0.0004274,120]
[403893448,1769638252440,-583.53285331,0.0004274,120]
[403893449,1769638252449,-631.11489639,0.00042747,120]
[403893450,1769638252459,-275.55993376,0.00042759,120]
[403893451,1769638252468,-1246.60605439,0.000428,28]
[403893452,1769638252477,-1353.05,0.000428,14]
[403893453,1769638252487,-202.6665997,0.000428,120]
[403893454,1769638252496,-152.48,0.00042805,120]
[403893455,1769638252505,-1000.0,0.00042834,2]
[403893456,1769638252515,-1000.0,0.00042835,14]
[403893457,1769638252524,-869.27,0.00042849,120]
[403893458,1769638252533,-500.0,0.00042849,120]
[403893459,1769638252543,-150.0,0.00042867,14]
[403893460,1769638252552,-1246.60605436,0.00042892,28]
[403893461,1769638252561,-151.0,0.00042897,120]
[403893462,1769638252570,-151.0,0.00042897,120]
[403893463,1769638252578,-10031.3,0.00042899,120]
[403893464,1769638252588,-1999.0,0.00042899,120]
[403893465,1769638252597,-150.0,0.00042899,20]
[403893466,1769638252606,-153.40934263,0.000429,60]
[403893467,1769638252615,-662303.78328242,0.000429,3]
[403893468,1769638252625,-408.21,0.000429,14]
[403893469,1769638252635,-151.0,0.000429,120]
[403893470,1769638252644,-151.0,0.000429,120]
[403893471,1769638252654,-151.0,0.000429,120]
[403893472,1769638252664,-151.0,0.000429,120]
[403893473,1769638252673,-151.0,0.000429,120]
[403893474,1769638252682,-151.0,0.000429,120]
[403893475,1769638252691,-151.0,0.000429,120]
[403893476,1769638252700,-151.0,0.000429,120]
[403893477,1769638252709,-151.0,0.000429,120]
[403893478,1769638252719,-151.0,0.000429,120]
[403893479,1769638252728,-151.0,0.000429,120]
[403893480,1769638252737,-151.45974,0.000429,120]
[403893481,1769638252747,-151.0,0.000429,120]
[403893482,1769638252756,-151.0,0.000429,120]
[403893483,1769638252765,-151.0,0.000429,120]
[403893484,1769638252774,-152.596155,0.000429,120]
[403893485,1769638252783,-151.0,0.000429,20]
[403893486,1769638252792,-151.0,0.000429,120]
[403893487,1769638252801,-210.677728,0.000429,120]
[403893488,1769638252811,-187.547238,0.000429,120]
[403893489,1769638252819,-151.0,0.000429,120]
[403893490,1769638252829,-151.0,0.000429,120]
[403893491,1769638252838,-158.430709,0.000429,120]
[403893492,1769638252847,-151.0,0.000429,120]
[403893493,1769638252856,-151.0,0.000429,120]
[403893494,1769638252866,-151.0,0.000429,120]
[403893495,1769638252875,-151.0,0.000429,120]
[403893496,1769638252884,-151.0,0.000429,120]
[403893497,1769638252893,-151.0,0.000429,120]
[403893498,1769638252902,-151.0,0.000429,120]
[403893499,1769638252911,-151.0,0.000429,120]
[403893500,1769638252921,-151.936349,0.000429,120]
[403893501,1769638252931,-151.0,0.000429,120]
[403893502,1769638252940,-151.0,0.000429,120]
[403893503,1769638252950,-151.0,0.000429,120]
[403893504,1769638252961,-151.0,0.000429,120]
[403893505,1769638252971,-151.388385,0.000429,120]
[403893506,1769638252981,-151.0,0.000429,120]
[403893507,1769638252990,-171.010398,0.000429,120]
[403893508,1769638252999,-151.0,0.000429,120]
[403893509,1769638253010,-277.90398,0.000429,120]
[403893510,1769638253019,-183.893422,0.000429,120]
[403893511,1769638253030,-151.0,0.000429,120]
[403893512,1769638253040,-151.0,0.000429,120]
[403893513,1769638253050,-151.0,0.000429,120]
[403893514,1769638253059,-151.0,0.000429,120]
[403893515,1769638253068,-151.0,0.000429,120]
[403893516,1769638253078,-183.823457,0.000429,120]
[403893517,1769638253088,-151.0,0.000429,120]
[403893518,1769638253098,-151.0,0.000429,120]
[403893519,1769638253107,-255.058924,0.000429,120]
[403893520,1769638253116,-151.0,0.000429,120]
[403893521,1769638253125,-151.0,0.000429,120]
[403893522,1769638253134,-151.0,0.000429,120]
[403893523,1769638253143,-153.016679,0.000429,120]
[403893524,1769638253153,-151.0,0.000429,120]
[403893525,1769638253162,-151.0,0.000429,15]
[403893526,1769638253172,-151.0,0.000429,15]
[403893527,1769638253181,-151.0,0.000429,15]
[403893528,1769638253189,-151.0,0.000429,120]
[403893529,1769638253199,-151.898141,0.000429,120]
[403893530,1769638253208,-151.997046,0.000429,120]
[403893531,1769638253217,-151.0,0.000429,120]
[403893532,1769638253226,-151.0,0.000429,120]
[403893533,1769638253236,-151.0,0.000429,120]
[403893534,1769638253245,-207.533651,0.000429,120]
[403893535,1769638253254,-151.0,0.000429,120]
[403893536,1769638253263,-151.0,0.000429,120]
[403893537,1769638253272,-151.0,0.000429,120]
[403893538,1769638253284,-151.0,0.000429,120]
[403893539,1769638253293,-151.351413,0.000429,7]
[403893540,1769638253302,-152.596667,0.000429,120]
[403893541,1769638253311,-151.0,0.000429,120]
[403893542,1769638253320,-151.0,0.000429,120]
[403893543,1769638253331,-152.283872,0.000429,120]
[403893544,1769638253340,-151.0,0.000429,120]
[403893545,1769638253350,-151.0,0.000429,120]
[403893546,1769638253359,-151.0,0.000429,120]
[403893547,1769638253369,-151.0,0.000429,120]
[403893548,1769638253379,-151.0,0.000429,120]
[403893549,1769638253388,-151.0,0.000429,120]
[403893550,1769638253398,-151.0,0.000429,120]
[403893551,1769638253407,-151.0,0.000429,120]
[403893552,1769638253416,-151.0,0.000429,120]
[403893553,1769638253426,-151.0,0.000429,120]
[403893554,1769638253435,-151.0,0.000429,120]
[403893555,1769638253445,-151.0,0.000429,120]
[403893556,1769638253454,-151.167725,0.000429,2]
[403893557,1769638253464,-151.0,0.000429,120]